[Event "21st Dubai Open 2019"]
[Site "Dubai"]
[Date "2019.04.06"]
[Round "6.34"]
[White "Naboka, Sergey"]
[Black "Chekh Adm Khedr, Aram"]
[Result "1-0"]
[ECO "C50"]
[WhiteElo "2327"]
[BlackElo "2146"]
[Annotator "NA"]
[PlyCount "59"]
[EventDate "2019.04.01"]
[EventType "swiss"]
[EventCountry "UAE"]
[SourceTitle "playchess.com"]
[Source "ChessBase"]
[SourceQuality "1"]
[TimeControl "5400+30"]

1. e4 {[%emt 0:00:00]} e5 {[%emt 0:00:00]} 2. Nf3 {[%emt 0:00:00]} Nc6 {[%emt 0:00:00]} 3. Bc4 {[%emt 0:00:39]} Bc5 {[%emt 0:00:01]} 4. O-O {[%emt 0:00:20]} Nf6 {[%emt 0:00:06]} 5. d4 {[%emt 0:00:35]} Bxd4 {[%emt 0:01:52]} 6. Nxd4 {[%emt 0:00:06]} Nxd4 {[%emt 0:00:05]} 7. f4 {[%emt 0:00:08]} d6 {[%emt 0:02:46]} 8. fxe5 {[%emt 0:00:06]} dxe5 {[%emt 0:00:05]} 9. Bg5 {[%emt 0:00:04]} Qe7 {[%emt 0:01:45]} 10. Na3 {[%emt 0:02:11]} Be6 {[%emt 0:33:41]} 11. c3 {[%emt 0:01:14]} Nc6 {[%emt 0:01:22]} 12. b4 {[%emt 0:02:18]} Nb8 {[%emt 0:06:53]} 13. Qe2 {[%emt 0:12:37]} c6 {[%emt 0:04:40]} 14. Bxe6 {[%emt 0:05:15]} Qxe6 {[%emt 0:00:14]} 15. Rad1 {[%emt 0:00:07]} Nbd7 {[%emt 0:13:21]} 16. Nc4 {[%emt 0:00:46]} O-O {[%emt 0:00:30]} 17. Nd6 {[%emt 0:01:10]} a5 {[%emt 0:00:16]} 18. Nf5 {[%emt 0:03:58]} axb4 {[%emt 0:03:18]} 19. Rd6 {[%emt 0:00:24]} Qxa2 {[%emt 0:08:19]} 20. Qf3 {[%emt 0:01:20]} b3 {[%emt 0:01:52]} 21. Bxf6 {[%emt 0:06:25]} Nxf6 {[%emt 0:00:12]} 22. Rxf6 {[%emt 0:00:32]} b2 {[%emt 0:00:31]} 23. Qg3 {[%emt 0:00:50]} g6 {[%emt 0:00:17]} 24. Ne7+ {[%emt 0:10:39]} Kh8 {[%emt 0:00:25]} 25. Qxe5 {[%emt 0:03:13]} Qa5 {[%emt 0:01:36]} 26. Nd5 {[%emt 0:02:14]} Kg8 {[%emt 0:00:01]} 27. Rxc6 {[%emt 0:05:41]} Qxd5 {[%emt 0:06:05]} 28. exd5 {[%emt 0:04:46]} bxc6 {[%emt 0:00:09]} 29. dxc6 {[%emt 0:00:49]} Ra1 {[%emt 0:00:45]} 30. Qb5 {[%emt 0:00:49]} 1-0

[Event "21st Dubai Open 2019"]
[Site "Dubai"]
[Date "2019.04.06"]
[Round "6.37"]
[White "Gandhi, Anish"]
[Black "Darini, Pouria"]
[Result "0-1"]
[ECO "B87"]
[WhiteElo "2202"]
[BlackElo "2455"]
[Annotator "RC"]
[PlyCount "116"]
[EventDate "2019.04.01"]
[EventType "swiss"]
[EventCountry "UAE"]
[SourceTitle "playchess.com"]
[Source "ChessBase"]
[SourceQuality "1"]
[TimeControl "5400+30"]

1. e4 {[%emt 0:00:00]} c5 {[%emt 0:00:00]} 2. Nf3 {[%emt 0:00:00]} d6 {[%emt 0:00:00]} 3. d4 {[%emt 0:00:04]} cxd4 {[%emt 0:00:00]} 4. Nxd4 {[%emt 0:00:03]} Nf6 {[%emt 0:00:00]} 5. Nc3 {[%emt 0:00:05]} a6 {[%emt 0:00:03]} 6. Bc4 {[%emt 0:00:12]} e6 {[%emt 0:00:21]} 7. Bb3 {[%emt 0:00:07]} b5 {[%emt 0:00:20]} 8. f4 {[%emt 0:00:12]} Bb7 {[%emt 0:01:45]} 9. O-O {[%emt 0:01:04]} Be7 {[%emt 0:03:39]} 10. Bxe6 {[%emt 0:10:30]} fxe6 {[%emt 0:00:01]} 11. Nxe6 {[%emt 0:00:09]} Qb6+ {[%emt 0:03:21]} 12. Kh1 {[%emt 0:00:04]} Nbd7 {[%emt 0:01:06]} 13. Nxg7+ {[%emt 0:02:11]} Kf7 {[%emt 0:01:10]} 14. Nf5 {[%emt 0:00:44]} h5 {[%emt 0:15:47]} 15. Be3 {[%emt 0:10:50]} Qc6 {[%emt 0:12:54]} 16. Qd4 {[%emt 0:01:20]} Bf8 {[%emt 0:19:17]} 17. Nh4 {[%emt 0:14:03]} Rg8 {[%emt 0:13:19]} 18. Nf3 {[%emt 0:07:41]} Nxe4 {[%emt 0:00:04]} 19. Nxe4 {[%emt 0:01:57]} Qxe4 {[%emt 0:00:02]} 20. Ng5+ {[%emt 0:00:09]} Rxg5 {[%emt 0:00:01]} 21. fxg5+ {[%emt 0:00:07]} Kg8 {[%emt 0:00:04]} 22. Qd2 {[%emt 0:00:59]} Ne5 {[%emt 0:04:42]} 23. Bd4 {[%emt 0:06:30]} Bg7 {[%emt 0:02:33]} 24. Rae1 {[%emt 0:02:55]} Qd5 {[%emt 0:05:50]} 25. c3 {[%emt 0:00:35]} Re8 {[%emt 0:06:30]} 26. Rf2 {[%emt 0:01:34]} Re6 {[%emt 0:03:34]} 27. Qe2 {[%emt 0:01:05]} h4 {[%emt 0:04:57]} 28. h3 {[%emt 0:01:21]} Re7 {[%emt 0:00:34]} 29. Ref1 {[%emt 0:02:07]} Qe6 {[%emt 0:02:04]} 30. Qh5 {[%emt 0:01:33]} Qxh3+ {[%emt 0:00:25]} 31. Kg1 {[%emt 0:00:04]} Qg4 {[%emt 0:00:34]} 32. Qxg4 {[%emt 0:00:36]} Nxg4 {[%emt 0:00:01]} 33. Rf4 {[%emt 0:00:07]} Ne5 {[%emt 0:00:34]} 34. Rxh4 {[%emt 0:00:30]} Re6 {[%emt 0:00:49]} 35. Rhf4 {[%emt 0:01:02]} Bd5 {[%emt 0:00:14]} 36. b3 {[%emt 0:00:51]} Rg6 {[%emt 0:00:08]} 37. Be3 {[%emt 0:01:56]} Nd3 {[%emt 0:00:14]} 38. Rf5 {[%emt 0:00:34]} Be6 {[%emt 0:00:30]} 39. R5f3 {[%emt 0:00:09]} Ne5 {[%emt 0:00:24]} 40. Rf4 {[%emt 0:00:25]} Nf7 {[%emt 0:00:28]} 41. Re4 {[%emt 0:02:23]} Be5 {[%emt 0:01:05]} 42. Rf6 {[%emt 0:02:42]} Rxf6 {[%emt 0:00:21]} 43. gxf6 {[%emt 0:00:05]} d5 {[%emt 0:00:25]} 44. Rh4 {[%emt 0:00:27]} Bxf6 {[%emt 0:00:04]} 45. Rf4 {[%emt 0:01:16]} Bxc3 {[%emt 0:00:02]} 46. Bd4 {[%emt 0:00:27]} Bxd4+ {[%emt 0:01:29]} 47. Rxd4 {[%emt 0:00:03]} Nd6 {[%emt 0:00:58]} 48. Rf4 {[%emt 0:01:46]} Ne4 {[%emt 0:00:15]} 49. Kf1 {[%emt 0:00:53]} Kg7 {[%emt 0:00:30]} 50. a3 {[%emt 0:00:27]} Nd2+ {[%emt 0:00:14]} 51. Ke2 {[%emt 0:00:17]} Nxb3 {[%emt 0:00:02]} 52. a4 {[%emt 0:00:48]} d4 {[%emt 0:00:54]} 53. axb5 {[%emt 0:00:54]} Bc4+ {[%emt 0:00:01]} 54. Kd1 {[%emt 0:00:32]} axb5 {[%emt 0:00:02]} 55. Kc2 {[%emt 0:00:16]} d3+ {[%emt 0:00:35]} 56. Kd1 {[%emt 0:00:55]} Kg6 {[%emt 0:00:07]} 57. Ke1 {[%emt 0:00:26]} Kg5 {[%emt 0:00:05]} 58. g3 {[%emt 0:00:04]} Be6 {[%emt 0:00:31]} 0-1

[Event "21st Dubai Open 2019"]
[Site "Dubai"]
[Date "2019.04.07"]
[Round "7.8"]
[White "Can, Emre"]
[Black "Dimakiling, Oliver"]
[Result "1-0"]
[ECO "A50"]
[WhiteElo "2599"]
[BlackElo "2404"]
[Annotator "ChessBase"]
[PlyCount "97"]
[EventDate "2019.04.01"]
[EventType "swiss"]
[EventCountry "UAE"]
[SourceTitle "playchess.com"]
[Source "ChessBase"]
[SourceQuality "1"]
[TimeControl "5400+30"]

1. d4 {[%emt 0:00:00]} Nf6 {[%emt 0:00:00]} 2. c4 {[%emt 0:00:09]} b6 {[%emt 0:00:04]} 3. Nc3 {[%emt 0:00:41]} Bb7 {[%emt 0:00:17]} 4. Qc2 {[%emt 0:00:14]} d6 {[%emt 0:01:22]} 5. e4 {[%emt 0:00:42]} Nbd7 {[%emt 0:00:34]} 6. Nf3 {[%emt 0:02:15]} e5 {[%emt 0:01:05]} 7. d5 {[%emt 0:02:15]} Be7 {[%emt 0:00:38]} 8. Be2 {[%emt 0:02:58]} c6 {[%emt 0:00:25]} 9. O-O {[%emt 0:03:09]} Rc8 {[%emt 0:00:39]} 10. Be3 {[%emt 0:05:12]} O-O {[%emt 0:02:06]} 11. Nd2 {[%emt 0:02:30]} Ne8 {[%emt 0:05:03]} 12. dxc6 {[%emt 0:04:23]} Bxc6 {[%emt 0:01:56]} 13. Rfd1 {[%emt 0:00:19]} g6 {[%emt 0:03:35]} 14. Bh6 {[%emt 0:08:54]} Ng7 {[%emt 0:00:10]} 15. Bg4 {[%emt 0:00:48]} Rc7 {[%emt 0:05:36]} 16. Nf1 {[%emt 0:07:53]} Nc5 {[%emt 0:07:35]} 17. Ne3 {[%emt 0:00:34]} Bg5 {[%emt 0:09:39]} 18. Bxg7 {[%emt 0:17:24]} Kxg7 {[%emt 0:00:17]} 19. Ned5 {[%emt 0:00:31]} Rb7 {[%emt 0:01:20]} 20. Nb4 {[%emt 0:00:20]} Be8 {[%emt 0:01:32]} 21. Nb5 {[%emt 0:00:28]} Be7 {[%emt 0:05:56]} 22. Nd5 {[%emt 0:04:12]} h5 {[%emt 0:04:03]} 23. Bh3 {[%emt 0:00:54]} a5 {[%emt 0:01:19]} 24. b3 {[%emt 0:06:59]} Bd7 {[%emt 0:06:52]} 25. Bxd7 {[%emt 0:01:01]} Rxd7 {[%emt 0:00:07]} 26. a3 {[%emt 0:04:37]} f5 {[%emt 0:04:00]} 27. exf5 {[%emt 0:00:56]} Rxf5 {[%emt 0:00:07]} 28. b4 {[%emt 0:02:09]} Ne6 {[%emt 0:00:06]} 29. Rd3 {[%emt 0:00:44]} Bf8 {[%emt 0:00:39]} 30. Rad1 {[%emt 0:02:24]} Rdf7 {[%emt 0:01:06]} 31. f3 {[%emt 0:00:35]} Qg5 {[%emt 0:03:26]} 32. Qd2 {[%emt 0:02:01]} Qh4 {[%emt 0:00:10]} 33. Qf2 {[%emt 0:00:17]} Qxc4 {[%emt 0:00:09]} 34. Nxd6 {[%emt 0:00:08]} Bxd6 {[%emt 0:01:39]} 35. Ne3 {[%emt 0:00:20]} Bc5 {[%emt 0:10:54]} 36. bxc5 {[%emt 0:01:07]} Qxc5 {[%emt 0:00:06]} 37. Nxf5+ {[%emt 0:00:27]} gxf5 {[%emt 0:01:18]} 38. Qxc5 {[%emt 0:00:08]} bxc5 {[%emt 0:00:14]} 39. Rd5 {[%emt 0:01:06]} Kf6 {[%emt 0:00:14]} 40. Re1 {[%emt 0:01:03]} Nf4 {[%emt 0:00:17]} 41. Rxc5 {[%emt 0:03:10]} Nd3 {[%emt 0:00:41]} 42. Rc6+ {[%emt 0:00:07]} Kg5 {[%emt 0:00:06]} 43. Re3 {[%emt 0:02:44]} Rd7 {[%emt 0:00:11]} 44. g3 {[%emt 0:02:58]} f4 {[%emt 0:01:30]} 45. Re2 {[%emt 0:00:16]} Rd5 {[%emt 0:00:15]} 46. Rd2 {[%emt 0:00:45]} fxg3 {[%emt 0:02:15]} 47. hxg3 {[%emt 0:00:10]} Kf5 {[%emt 0:00:04]} 48. Rc4 {[%emt 0:00:55]} Rd7 {[%emt 0:00:37]} 49. Kf1 {[%emt 0:00:23]} 1-0

[Event "21st Dubai Open 2019"]
[Site "Dubai"]
[Date "2019.04.07"]
[Round "7.9"]
[White "Abdusattorov, Nodirbek"]
[Black "Raghunandan, Kaumandur Srihari"]
[Result "1-0"]
[ECO "B90"]
[WhiteElo "2578"]
[BlackElo "2370"]
[Annotator "ChessBase"]
[PlyCount "81"]
[EventDate "2019.04.01"]
[EventType "swiss"]
[EventCountry "UAE"]
[SourceTitle "playchess.com"]
[Source "ChessBase"]
[SourceQuality "1"]
[TimeControl "5400+30"]

1. e4 {[%emt 0:00:00]} c5 {[%emt 0:00:00]} 2. Nf3 {[%emt 0:00:00]} d6 {[%emt 0:00:00]} 3. d4 {[%emt 0:00:00]} cxd4 {[%emt 0:00:03]} 4. Nxd4 {[%emt 0:00:00]} Nf6 {[%emt 0:00:06]} 5. Nc3 {[%emt 0:00:03]} a6 {[%emt 0:00:05]} 6. Be3 {[%emt 0:00:05]} e5 {[%emt 0:00:12]} 7. Nb3 {[%emt 0:00:08]} Be6 {[%emt 0:00:06]} 8. f3 {[%emt 0:00:06]} h5 {[%emt 0:00:06]} 9. Qd2 {[%emt 0:00:06]} Nbd7 {[%emt 0:00:11]} 10. O-O-O {[%emt 0:00:38]} Rc8 {[%emt 0:01:44]} 11. Kb1 {[%emt 0:00:31]} Be7 {[%emt 0:00:23]} 12. Bg5 {[%emt 0:01:35]} Qc7 {[%emt 0:05:37]} 13. h4 {[%emt 0:00:25]} b5 {[%emt 0:03:45]} 14. a3 {[%emt 0:00:39]} Nb6 {[%emt 0:04:28]} 15. Bxf6 {[%emt 0:01:07]} gxf6 {[%emt 0:00:55]} 16. Na5 {[%emt 0:01:27]} Kf8 {[%emt 0:34:27]} 17. Be2 {[%emt 0:08:57]} f5 {[%emt 0:15:19]} 18. f4 {[%emt 0:12:29]} fxe4 {[%emt 0:04:02]} 19. Rhf1 {[%emt 0:18:03]} exf4 {[%emt 0:11:13]} 20. Nxe4 {[%emt 0:00:58]} d5 {[%emt 0:01:18]} 21. Ng5 {[%emt 0:01:37]} Bxg5 {[%emt 0:01:05]} 22. hxg5 {[%emt 0:00:07]} Rg8 {[%emt 0:02:25]} 23. Rxf4 {[%emt 0:04:55]} Rxg5 {[%emt 0:00:15]} 24. Nb3 {[%emt 0:01:11]} Rxg2 {[%emt 0:03:15]} 25. Nd4 {[%emt 0:00:36]} Qe5 {[%emt 0:05:32]} 26. Nxe6+ {[%emt 0:08:22]} Qxe6 {[%emt 0:00:06]} 27. Qb4+ {[%emt 0:00:09]} Kg8 {[%emt 0:02:03]} 28. Bxh5 {[%emt 0:00:56]} Rc4 {[%emt 0:01:16]} 29. Rxc4 {[%emt 0:03:09]} Nxc4 {[%emt 0:00:02]} 30. Bf3 {[%emt 0:01:26]} a5 {[%emt 0:02:44]} 31. Qc3 {[%emt 0:02:44]} Rg3 {[%emt 0:00:11]} 32. Rh1 {[%emt 0:03:13]} Ne5 {[%emt 0:01:50]} 33. Qc7 {[%emt 0:00:41]} Rh3 {[%emt 0:01:11]} 34. Rg1+ {[%emt 0:03:42]} Kh7 {[%emt 0:00:28]} 35. Bxd5 {[%emt 0:01:10]} Qf5 {[%emt 0:00:33]} 36. Ka2 {[%emt 0:07:12]} b4 {[%emt 0:00:30]} 37. Re1 {[%emt 0:01:00]} Ng6 {[%emt 0:00:28]} 38. Bxf7 {[%emt 0:00:50]} Kh6 {[%emt 0:00:32]} 39. Bxg6 {[%emt 0:00:54]} Qxg6 {[%emt 0:00:19]} 40. Qf4+ {[%emt 0:00:11]} Qg5 {[%emt 0:00:23]} 41. Re6+ {[%emt 0:00:15]} 1-0

[Event "21st Dubai Open 2019"]
[Site "Dubai"]
[Date "2019.04.07"]
[Round "7.10"]
[White "Debashis, Das"]
[Black "Bharath Subramaniyam H"]
[Result "1-0"]
[ECO "A61"]
[WhiteElo "2538"]
[BlackElo "2301"]
[Annotator "ChessBase"]
[PlyCount "97"]
[EventDate "2019.04.01"]
[EventType "swiss"]
[EventCountry "UAE"]
[SourceTitle "playchess.com"]
[Source "ChessBase"]
[SourceQuality "1"]
[TimeControl "5400+30"]

1. d4 {[%emt 0:00:00]} Nf6 {[%emt 0:00:00]} 2. c4 {[%emt 0:00:00]} e6 {[%emt 0:00:00]} 3. Nc3 {[%emt 0:00:00]} c5 {[%emt 0:00:10]} 4. d5 {[%emt 0:00:06]} exd5 {[%emt 0:00:12]} 5. cxd5 {[%emt 0:00:04]} d6 {[%emt 0:00:11]} 6. Nf3 {[%emt 0:00:05]} g6 {[%emt 0:00:09]} 7. Nd2 {[%emt 0:00:06]} Nbd7 {[%emt 0:00:23]} 8. e4 {[%emt 0:00:23]} Bg7 {[%emt 0:00:14]} 9. Be2 {[%emt 0:01:28]} O-O {[%emt 0:00:12]} 10. O-O {[%emt 0:00:05]} Re8 {[%emt 0:00:26]} 11. a4 {[%emt 0:00:30]} Ne5 {[%emt 0:00:17]} 12. Qc2 {[%emt 0:00:51]} Bg4 {[%emt 0:00:44]} 13. Bb5 {[%emt 0:13:58]} Bd7 {[%emt 0:08:45]} 14. Be2 {[%emt 0:03:40]} Bg4 {[%emt 0:07:51]} 15. f4 {[%emt 0:01:13]} Ned7 {[%emt 0:05:08]} 16. Bd3 {[%emt 0:03:18]} Nh5 {[%emt 0:06:30]} 17. Nc4 {[%emt 0:00:15]} Nb6 {[%emt 0:02:55]} 18. Ne3 {[%emt 0:19:18]} Bd4 {[%emt 0:06:10]} 19. a5 {[%emt 0:00:06]} c4 {[%emt 0:00:42]} 20. axb6 {[%emt 0:00:50]} cxd3 {[%emt 0:00:17]} 21. Qxd3 {[%emt 0:00:16]} Bxb6 {[%emt 0:04:38]} 22. Kh1 {[%emt 0:01:17]} Bd7 {[%emt 0:11:18]} 23. Nc4 {[%emt 0:03:08]} Bc5 {[%emt 0:01:11]} 24. Be3 {[%emt 0:15:45]} b5 {[%emt 0:01:36]} 25. Nd2 {[%emt 0:00:37]} b4 {[%emt 0:02:52]} 26. Nd1 {[%emt 0:01:26]} Rc8 {[%emt 0:08:05]} 27. Bxc5 {[%emt 0:08:01]} Rxc5 {[%emt 0:00:08]} 28. Rf2 {[%emt 0:00:48]} Qh4 {[%emt 0:07:52]} 29. Kg1 {[%emt 0:09:47]} Bb5 {[%emt 0:13:29]} 30. Qf3 {[%emt 0:01:52]} Rc2 {[%emt 0:03:00]} 31. g3 {[%emt 0:02:53]} Qh3 {[%emt 0:01:02]} 32. f5 {[%emt 0:03:48]} Re7 {[%emt 0:06:05]} 33. Ne3 {[%emt 0:03:44]} Rxb2 {[%emt 0:00:16]} 34. Rc1 {[%emt 0:00:02]} f6 {[%emt 0:01:00]} 35. fxg6 {[%emt 0:00:45]} hxg6 {[%emt 0:00:01]} 36. Ng4 {[%emt 0:00:20]} Kh8 {[%emt 0:02:49]} 37. e5 {[%emt 0:03:20]} dxe5 {[%emt 0:00:52]} 38. d6 {[%emt 0:00:06]} Rf7 {[%emt 0:00:48]} 39. Qd5 {[%emt 0:01:07]} Rg7 {[%emt 0:00:29]} 40. Nxf6 {[%emt 0:02:27]} Nxf6 {[%emt 0:00:08]} 41. Rxf6 {[%emt 0:00:02]} Bd7 {[%emt 0:00:43]} 42. Rf8+ Kh7 43. Qa8 {[%emt 0:00:40]} Kh6 {[%emt 0:00:21]} 44. Rh8+ {[%emt 0:00:22]} Rh7 {[%emt 0:00:00]} 45. Qf8+ {[%emt 0:00:08]} Kg5 {[%emt 0:00:01]} 46. Nf3+ {[%emt 0:00:26]} Kg4 {[%emt 0:00:05]} 47. Nxe5+ {[%emt 0:00:04]} Kg5 {[%emt 0:00:05]} 48. Qf4+ {[%emt 0:00:07]} Kh5 {[%emt 0:00:06]} 49. Rxh7# {[%emt 0:00:04]} 1-0

[Event "21st Dubai Open 2019"]
[Site "Dubai"]
[Date "2019.04.07"]
[Round "7.14"]
[White "Sidhant, Mohapatra"]
[Black "Pichot, Alan"]
[Result "0-1"]
[ECO "B66"]
[WhiteElo "2348"]
[BlackElo "2566"]
[Annotator "ChessBase"]
[PlyCount "90"]
[EventDate "2019.04.01"]
[EventType "swiss"]
[EventCountry "UAE"]
[SourceTitle "playchess.com"]
[Source "ChessBase"]
[SourceQuality "1"]
[TimeControl "5400+30"]

1. e4 {[%emt 0:00:00]} c5 {[%emt 0:00:00]} 2. Nf3 {[%emt 0:00:08]} Nc6 {[%emt 0:00:03]} 3. d4 {[%emt 0:00:25]} cxd4 {[%emt 0:00:09]} 4. Nxd4 {[%emt 0:00:04]} Nf6 {[%emt 0:00:06]} 5. Nc3 {[%emt 0:00:07]} d6 {[%emt 0:00:07]} 6. Bg5 {[%emt 0:02:50]} e6 {[%emt 0:00:05]} 7. Qd2 {[%emt 0:00:23]} a6 {[%emt 0:00:06]} 8. Nxc6 {[%emt 0:00:19]} bxc6 {[%emt 0:00:06]} 9. O-O-O {[%emt 0:00:08]} Be7 {[%emt 0:00:19]} 10. Bxf6 {[%emt 0:01:28]} gxf6 {[%emt 0:00:06]} 11. Bc4 {[%emt 0:00:21]} Bb7 {[%emt 0:00:12]} 12. f4 {[%emt 0:00:51]} Qa5 {[%emt 0:00:32]} 13. Rhe1 {[%emt 0:01:22]} O-O-O {[%emt 0:01:42]} 14. f5 {[%emt 0:06:26]} d5 {[%emt 0:02:09]} 15. exd5 {[%emt 0:02:53]} cxd5 {[%emt 0:00:29]} 16. Bd3 {[%emt 0:18:09]} e5 {[%emt 0:16:02]} 17. Kb1 {[%emt 0:04:52]} d4 {[%emt 0:07:43]} 18. Ne4 {[%emt 0:02:41]} Bb4 {[%emt 0:00:26]} 19. c3 {[%emt 0:00:50]} dxc3 {[%emt 0:00:24]} 20. bxc3 {[%emt 0:00:17]} Be7 {[%emt 0:05:42]} 21. Ka1 {[%emt 0:03:27]} Rd7 {[%emt 0:03:25]} 22. Rb1 {[%emt 0:06:44]} Qd5 {[%emt 0:35:27]} 23. Re3 {[%emt 0:07:45]} Qc6 {[%emt 0:00:22]} 24. Qe2 {[%emt 0:03:14]} Rc7 {[%emt 0:01:03]} 25. Bc2 {[%emt 0:05:23]} Rd8 {[%emt 0:00:55]} 26. Bb3 {[%emt 0:00:34]} Bc5 {[%emt 0:01:05]} 27. Nxc5 {[%emt 0:01:01]} Qxc5 {[%emt 0:00:01]} 28. Rh3 {[%emt 0:05:19]} e4 {[%emt 0:03:52]} 29. g4 {[%emt 0:04:24]} Qe5 {[%emt 0:01:30]} 30. Rxh7 {[%emt 0:01:55]} e3 {[%emt 0:02:07]} 31. Rxf7 {[%emt 0:02:36]} Qxc3+ {[%emt 0:04:25]} 32. Qb2 {[%emt 0:00:09]} Qxb2+ {[%emt 0:00:15]} 33. Kxb2 {[%emt 0:00:01]} Rd2+ {[%emt 0:00:16]} 34. Ka3 {[%emt 0:00:06]} Rxf7 {[%emt 0:00:26]} 35. Bxf7 {[%emt 0:00:02]} e2 {[%emt 0:01:10]} 36. Re1 {[%emt 0:00:15]} Bf3 {[%emt 0:01:16]} 37. Bc4 {[%emt 0:00:05]} a5 {[%emt 0:05:18]} 38. g5 {[%emt 0:00:18]} fxg5 {[%emt 0:00:36]} 39. f6 {[%emt 0:00:21]} Kd7 {[%emt 0:02:01]} 40. f7 {[%emt 0:00:14]} Ke7 {[%emt 0:00:01]} 41. Rb1 {[%emt 0:00:11]} Rd8 {[%emt 0:03:37]} 42. Re1 {[%emt 0:00:47]} Rd1 {[%emt 0:00:34]} 43. Rxe2+ {[%emt 0:00:50]} Bxe2 {[%emt 0:00:02]} 44. Bxe2 {[%emt 0:00:07]} Rd2 {[%emt 0:00:04]} 45. Bc4 {[%emt 0:00:14]} Rxh2 {[%emt 0:00:07]} 0-1

[Event "21st Dubai Open 2019"]
[Site "Dubai"]
[Date "2019.04.07"]
[Round "7.15"]
[White "Raahul V S"]
[Black "Bellahcene, Bilel"]
[Result "1-0"]
[ECO "A33"]
[WhiteElo "2252"]
[BlackElo "2538"]
[Annotator "RC"]
[PlyCount "175"]
[EventDate "2019.04.01"]
[EventType "swiss"]
[EventCountry "UAE"]
[SourceTitle "playchess.com"]
[Source "ChessBase"]
[SourceQuality "1"]
[TimeControl "5400+30"]

1. c4 {[%emt 0:00:00]} c5 {[%emt 0:02:19]} 2. Nf3 {[%emt 0:00:00]} Nf6 {[%emt 0:00:01]} 3. Nc3 {[%emt 0:00:14]} Nc6 {[%emt 0:00:03]} 4. d4 {[%emt 0:00:23]} cxd4 {[%emt 0:00:03]} 5. Nxd4 {[%emt 0:00:04]} e6 {[%emt 0:00:03]} 6. Bg5 {[%emt 0:04:04]} Bb4 {[%emt 0:03:04]} 7. Nxc6 {[%emt 0:05:36]} bxc6 {[%emt 0:00:47]} 8. e4 {[%emt 0:00:19]} h6 {[%emt 0:01:14]} 9. Bxf6 {[%emt 0:05:12]} Qxf6 {[%emt 0:00:06]} 10. Rc1 {[%emt 0:00:32]} Rb8 {[%emt 0:01:25]} 11. Qd2 {[%emt 0:00:44]} Qg6 {[%emt 0:08:01]} 12. f3 {[%emt 0:01:11]} e5 {[%emt 0:08:05]} 13. a3 {[%emt 0:03:43]} Be7 {[%emt 0:02:55]} 14. Qf2 {[%emt 0:02:24]} Qd6 {[%emt 0:01:23]} 15. b4 {[%emt 0:01:47]} Qd4 {[%emt 0:02:32]} 16. Qxd4 {[%emt 0:04:29]} exd4 {[%emt 0:00:13]} 17. Ne2 {[%emt 0:00:14]} a5 {[%emt 0:02:31]} 18. Nxd4 {[%emt 0:00:38]} axb4 {[%emt 0:00:04]} 19. axb4 {[%emt 0:00:52]} Bxb4+ {[%emt 0:00:05]} 20. Kd1 {[%emt 0:00:20]} Bc5 {[%emt 0:15:19]} 21. Nc2 {[%emt 0:00:10]} O-O {[%emt 0:25:01]} 22. Bd3 {[%emt 0:00:15]} d5 {[%emt 0:04:02]} 23. cxd5 {[%emt 0:03:03]} cxd5 {[%emt 0:00:04]} 24. exd5 {[%emt 0:00:19]} Rd8 {[%emt 0:00:05]} 25. Bc4 {[%emt 0:01:05]} Bf5 {[%emt 0:03:38]} 26. Re1 {[%emt 0:04:31]} Rdc8 {[%emt 0:04:26]} 27. Ba6 {[%emt 0:04:50]} Rd8 {[%emt 0:00:53]} 28. Bc4 {[%emt 0:00:02]} Rdc8 {[%emt 0:03:53]} 29. Ba6 {[%emt 0:04:25]} Rd8 {[%emt 0:01:34]} 30. Bc4 {[%emt 0:00:14]} h5 {[%emt 0:00:02]} 31. Re2 {[%emt 0:06:57]} h4 {[%emt 0:01:11]} 32. Ne3 {[%emt 0:01:22]} Bd7 {[%emt 0:00:20]} 33. Ke1 {[%emt 0:02:59]} Rdc8 {[%emt 0:00:57]} 34. Bd3 {[%emt 0:09:17]} Bb4+ {[%emt 0:02:35]} 35. Kd1 {[%emt 0:00:03]} Ba4+ {[%emt 0:00:06]} 36. Nc2 {[%emt 0:00:52]} Rc3 {[%emt 0:02:30]} 37. Be4 {[%emt 0:03:32]} g6 {[%emt 0:00:12]} 38. Ra1 {[%emt 0:08:29]} Bb3 {[%emt 0:00:13]} 39. d6 {[%emt 0:05:57]} f5 {[%emt 0:02:43]} 40. Bd5+ {[%emt 0:01:00]} Bxd5 {[%emt 0:02:59]} 41. Nxb4 {[%emt 0:00:29]} Rxb4 {[%emt 0:00:21]} 42. d7 {[%emt 0:00:58]} Rd4+ {[%emt 0:01:21]} 43. Ke1 {[%emt 0:01:28]} Bxf3 {[%emt 0:00:50]} 44. Re8+ {[%emt 0:00:23]} Kf7 {[%emt 0:00:08]} 45. d8=Q {[%emt 0:00:13]} Rxd8 {[%emt 0:00:13]} 46. Rxd8 {[%emt 0:00:02]} Bxg2 {[%emt 0:00:58]} 47. Rd6 {[%emt 0:02:23]} Rc6 {[%emt 0:01:31]} 48. Ra7+ {[%emt 0:00:08]} Ke8 {[%emt 0:00:07]} 49. Rxc6 {[%emt 0:00:22]} Bxc6 {[%emt 0:00:02]} 50. Rg7 {[%emt 0:00:06]} Bg2 {[%emt 0:00:50]} 51. Rxg6 {[%emt 0:00:21]} h3 {[%emt 0:00:25]} 52. Rf6 {[%emt 0:00:02]} Be4 {[%emt 0:00:07]} 53. Kf2 {[%emt 0:00:02]} Ke7 {[%emt 0:00:03]} 54. Rh6 {[%emt 0:00:04]} Bg2 {[%emt 0:00:30]} 55. Kg3 {[%emt 0:00:08]} Kf7 {[%emt 0:00:46]} 56. Kf4 {[%emt 0:00:06]} Kg7 {[%emt 0:00:03]} 57. Ra6 {[%emt 0:00:06]} Kf7 {[%emt 0:00:30]} 58. Kxf5 {[%emt 0:00:44]} Ke7 {[%emt 0:00:02]} 59. Ke5 {[%emt 0:00:01]} Kd7 {[%emt 0:00:01]} 60. Rh6 {[%emt 0:00:13]} Kc7 {[%emt 0:00:07]} 61. Rd6 {[%emt 0:00:13]} Kb7 {[%emt 0:00:10]} 62. Kd4 {[%emt 0:00:06]} Kc7 {[%emt 0:00:26]} 63. Kc5 {[%emt 0:00:10]} Kb7 {[%emt 0:00:09]} 64. Rh6 {[%emt 0:00:05]} Bf1 {[%emt 0:00:22]} 65. Rb6+ {[%emt 0:01:10]} Kc7 {[%emt 0:00:03]} 66. Rf6 {[%emt 0:00:05]} Bg2 {[%emt 0:00:11]} 67. Rf7+ {[%emt 0:00:02]} Kb8 {[%emt 0:00:27]} 68. Kd6 {[%emt 0:01:23]} Kc8 {[%emt 0:00:02]} 69. Rh7 {[%emt 0:00:08]} Kb8 {[%emt 0:00:06]} 70. Rc7 {[%emt 0:00:02]} Bf3 {[%emt 0:00:22]} 71. Rc3 {[%emt 0:00:53]} Bg2 {[%emt 0:00:04]} 72. Kd7 {[%emt 0:02:41]} Ka7 {[%emt 0:00:42]} 73. Rb3 {[%emt 0:00:04]} Ka6 {[%emt 0:00:01]} 74. Kd6 {[%emt 0:00:12]} Ka7 {[%emt 0:00:09]} 75. Kc5 {[%emt 0:00:35]} Ka6 {[%emt 0:00:23]} 76. Rb2 {[%emt 0:00:04]} Ka7 {[%emt 0:00:06]} 77. Kd4 {[%emt 0:00:01]} Bb7 {[%emt 0:05:45]} 78. Rb3 {[%emt 0:00:45]} Bc8 {[%emt 0:00:18]} 79. Ke5 {[%emt 0:00:15]} Ka6 {[%emt 0:00:11]} 80. Rb8 {[%emt 0:00:27]} Bd7 {[%emt 0:00:08]} 81. Rd8 {[%emt 0:00:05]} Bc6 {[%emt 0:00:19]} 82. Rd3 {[%emt 0:03:17]} Bg2 {[%emt 0:00:20]} 83. Rb3 {[%emt 0:00:00]} Ka5 {[%emt 0:00:15]} 84. Kf4 {[%emt 0:01:39]} Ka4 {[%emt 0:00:00]} 85. Rb2 {[%emt 0:00:36]} Ka3 {[%emt 0:00:04]} 86. Rb6 {[%emt 0:00:05]} Ka4 {[%emt 0:00:10]} 87. Kg3 {[%emt 0:00:04]} Ka5 {[%emt 0:00:11]} 88. Rb2 {[%emt 0:00:03]} 1-0